bitfinex-derivatives/quotes_ETHF0:USTF0_20250926
["timestamp","ask_amount","ask_price","bid_price","bid_amount"]
[1758853953083,0.79787,3950.4,3950.0,0.3259]
[1758853953084,0.3425,3950.3,3950.0,0.3259]
[1758853953282,0.45538,3950.4,3950.1,0.3259]
[1758853953484,0.3425,3950.2,3950.1,0.3259]
[1758853953687,0.45542,3950.0,3949.6,0.3259]
[1758853953990,0.45543,3949.9,3949.6,0.3259]
[1758853954190,0.3425,3949.7,3949.6,0.3259]
[1758853954389,0.3425,3949.8,3949.4,0.3259]
[1758853954694,0.3425,3949.6,3949.4,0.45547]
[1758853954995,0.3425,3949.6,3949.4,0.78137]
[1758853955392,0.3425,3949.4,3949.1,0.3259]
[1758853955589,0.45547,3949.5,3949.1,0.78141]
[1758853955788,0.3425,3949.4,3949.2,0.7814]
[1758853956188,0.3425,3949.4,3949.3,0.3259]
[1758853956391,0.45543,3949.9,3949.4,0.45548]
[1758853956692,0.45542,3950.0,3949.1,0.3259]
[1758853956883,1.1383,3950.9,3949.1,0.3259]
[1758853956884,0.3425,3950.3,3949.9,0.45542]
[1758853957084,0.3425,3950.3,3950.0,0.1261]
[1758853957295,0.79785,3950.6,3950.0,0.58151]
[1758853957489,0.85804426,3950.5,3950.2,0.3259]
[1758853957689,0.51554426,3950.4,3950.0,0.1261]
[1758853957995,0.85804426,3950.3,3950.1,0.3259]
[1758853958192,0.3425,3950.3,3950.1,0.3259]
[1758853958592,0.3425,3949.8,3949.6,0.3259]
[1758853958793,0.45545,3949.7,3949.6,0.3259]
[1758853962297,0.97223989,3949.7,3949.6,0.3259]
[1758853962793,0.45545,3949.7,3949.6,0.3259]
[1758853963192,0.97236831,3949.7,3949.6,0.3259]
[1758853963401,1.40486831,3949.7,3949.6,0.749]
[1758853963591,0.51691831,3949.7,3949.6,0.4231]
[1758853963791,0.45544,3949.8,3949.7,0.3259]
[1758853963992,0.45542,3950.0,3949.9,0.749]
[1758853964392,0.97236948,3950.0,3949.9,0.749]
[1758853964595,0.51694948,3950.0,3949.9,5.3259]
[1758853964897,0.45536,3950.5,3950.1,0.3259]
[1758853965197,0.51722534,3950.4,3950.1,0.3259]
[1758853965395,0.51722534,3950.3,3950.1,0.3259]
[1758853965596,0.79794,3949.8,3949.5,0.3871]
[1758853965801,0.79794,3949.8,3949.6,0.3259]
[1758853966000,0.3425,3949.7,3949.6,0.3259]
[1758853966197,0.45544,3949.8,3949.6,0.3259]
[1758853966410,0.45546,3949.6,3949.5,0.452]
[1758853966703,0.97318975,3949.6,3949.5,0.3259]
[1758853967199,0.45552,3949.1,3949.0,0.4545]
[1758853967397,0.97351467,3949.1,3949.0,0.4545]
[1758853967904,1.31601467,3949.1,3949.0,0.3259]
[1758853968090,0.97351467,3949.1,3949.0,0.452]
[1758853968802,0.51799467,3949.1,3949.0,0.452]
[1758853969195,0.3425,3949.9,3949.1,0.3259]
[1758853969390,0.51825171,3949.8,3949.1,0.3259]
[1758853969602,0.51825171,3949.7,3949.1,0.3259]
[1758853969903,0.51825171,3949.6,3949.1,0.3259]
[1758853970203,0.45549,3949.4,3949.1,0.3259]
[1758853970401,0.51825171,3949.3,3949.1,0.3259]
[1758853970803,0.51825171,3949.3,3949.2,0.749]
[1758853971098,0.51825171,3949.5,3949.2,0.4231]
[1758853971303,0.51825171,3949.4,3949.3,0.5378]
[1758853971601,0.51825171,3949.4,3949.1,0.45551]
[1758853971602,0.67236,3949.6,3949.5,0.4231]
[1758853971805,1.19071749,3949.6,3949.5,0.749]
[1758853972898,0.45551,3949.2,3949.1,0.261]
[1758853973103,0.67241,3949.2,3949.1,0.6841]
[1758853973306,1.19076749,3949.2,3949.1,0.6841]
[1758853973497,1.19076749,3949.2,3949.1,1.01]
[1758853974597,1.19076749,3949.2,3949.1,0.261]
[1758853974598,1.74886749,3949.2,3949.1,0.261]
[1758853974904,1.40636749,3949.2,3949.1,1.01]
[1758853975201,0.95085749,3949.2,3949.1,1.01]
[1758853975397,0.51835749,3949.2,3949.1,1.01]
[1758853975597,0.73525749,3949.2,3949.1,1.01]
[1758853975903,0.95085749,3949.2,3949.1,1.01]
[1758853977506,0.51835749,3949.2,3949.1,1.01]
[1758853977905,1.29335749,3949.2,3949.1,1.01]
[1758853979605,1.29335749,3949.2,3948.6,1.36021593]
[1758853979606,0.45556,3948.7,3948.6,1.36021593]
[1758853979806,1.23056,3948.7,3948.6,0.2119]
[1758853980105,1.23056,3948.7,3948.5,0.26]
[1758853980106,0.775,3948.6,3948.5,0.26]
[1758853980306,0.775,3948.6,3948.5,1.1671]
[1758853980307,0.51879131,3948.6,3948.5,1.1671]
[1758853980508,0.2089,3949.9,3949.6,0.3443]
[1758853980806,0.4554,3950.2,3949.8,0.7701]
[1758853981010,0.2089,3949.9,3949.8,0.7701]
[1758853981203,0.4299,3949.9,3949.8,0.7701]
[1758853981394,0.52595005,3949.9,3949.8,0.7701]
[1758853981803,1.30125005,3949.9,3949.8,0.7701]
[1758853982211,0.52595005,3949.9,3949.8,0.7701]
[1758853983804,0.0197,3950.3,3950.0,0.1352]
[1758853984008,0.0197,3950.3,3950.2,0.7558]
[1758853984407,0.76010701,3950.3,3950.2,0.7558]
[1758853984902,0.52510701,3950.3,3950.2,6.21119]
[1758853985108,0.5617,3951.4,3951.3,0.2144]
[1758853985410,0.5617,3951.4,3951.3,0.5444]
[1758853986112,0.1252,3952.0,3951.9,0.5444]
[1758853986113,0.7739,3952.0,3951.9,0.5444]
[1758853986699,0.2153,3952.0,3951.9,0.7582]
[1758853987803,0.2153,3952.2,3952.0,0.1305]
[1758853987996,0.2153,3952.2,3952.1,0.7582]
[1758853988402,0.8015,3952.8,3952.2,0.33]
[1758853988711,0.88261,3952.7,3952.6,0.2144]
[1758853988908,1.22901,3952.7,3952.6,0.2144]
[1758853989104,0.2153,3952.4,3952.3,0.5444]
[1758853989305,0.2153,3952.4,3952.3,0.7582]
[1758853990511,0.022,3952.9,3952.8,0.78509]
[1758853990706,0.022,3952.9,3952.8,1.04509]
[1758853991317,0.022,3952.9,3952.8,1.04609]
[1758853992215,0.022,3952.9,3952.8,0.33]
[1758853992506,0.3684,3952.9,3952.6,40.8]
[1758853992701,0.47709,3952.9,3952.6,41.13]
[1758853992913,0.4551,3952.8,3952.1,0.591]
[1758853993102,0.022,3952.9,3952.3,0.33]
[1758853993103,0.3464,3952.5,3952.3,0.33]
[1758853993310,0.3464,3952.5,3952.1,0.261]
[1758853993311,0.3464,3952.8,3952.6,0.33]
[1758853993510,0.3464,3952.8,3952.5,40.8]
[1758853993704,0.3464,3952.8,3952.6,0.33]
[1758853993905,0.3464,3952.8,3952.5,0.33]
[1758853994106,0.3464,3952.8,3952.6,0.33]
[1758853994415,0.022,3952.9,3952.4,0.78513]
[1758853994611,0.3464,3952.8,3952.5,0.33]
[1758853994816,0.3464,3952.8,3952.3,0.33]
[1758853995015,0.3464,3952.8,3952.2,0.45516]
[1758853995314,0.80149,3952.8,3952.4,0.33]
[1758853995615,0.022,3952.9,3952.1,41.061]
[1758853995616,0.3464,3952.3,3952.1,41.061]
[1758853995813,0.45515,3952.4,3952.1,0.261]
[1758853996015,0.3464,3952.3,3952.1,0.591]
[1758853996408,0.3464,3952.3,3952.1,0.261]
[1758853996608,0.80151,3952.6,3952.2,0.33]
[1758853996903,0.022,3952.9,3952.4,0.33]
[1758853996904,0.3464,3952.5,3952.4,0.33]
[1758853997108,0.47709,3952.9,3952.5,0.1305]
[1758853997307,0.47709,3952.9,3952.1,0.261]
[1758853997308,0.8015,3952.7,3952.6,0.33]
[1758853997507,0.80152,3952.6,3952.3,0.33]
[1758853997815,0.3464,3952.4,3952.3,0.33]
[1758853998019,0.022,3952.9,3952.6,0.78511]
[1758853998317,0.022,3952.9,3952.8,0.33]
[1758853998611,0.022,3952.9,3952.5,0.1305]
[1758853998612,0.3684,3952.9,3952.5,0.1305]
[1758853998808,0.3684,3952.9,3952.6,0.33]
[1758853999315,0.022,3952.9,3952.6,0.33]
[1758854000005,0.022,3952.9,3952.5,0.1305]
[1758854000006,0.3684,3952.9,3952.5,0.1305]
[1758854000208,0.022,3952.9,3952.7,0.45509]
[1758854000408,0.022,3952.9,3952.8,0.33]
[1758854001211,0.022,3952.9,3952.6,0.33]
[1758854001414,0.022,3952.9,3952.5,0.1305]
[1758854001611,0.022,3952.9,3952.7,0.33]
[1758854002003,0.022,3952.9,3952.8,0.33]
[1758854002207,0.115,3954.2,3953.5,0.5855]
[1758854002208,0.80133,3954.2,3953.5,0.5855]
[1758854002515,0.3464,3954.4,3953.6,0.33]
[1758854003011,0.3464,3954.4,3953.5,0.5855]
[1758854003012,0.80132,3954.4,3953.8,0.33]
[1758854003212,0.3464,3954.4,3953.6,0.33]
[1758854003417,0.3464,3954.4,3953.5,0.1305]
[1758854003418,0.3464,3954.4,3953.8,0.33]
[1758854003811,0.45494,3954.1,3953.8,0.33]
[1758854004113,0.3464,3953.8,3953.1,40.8]
[1758854004314,0.3464,3954.3,3953.3,0.33]
[1758854004518,0.3464,3954.3,3953.5,0.4605]
[1758854004813,0.3464,3954.3,3953.6,0.33]
[1758854005317,0.3464,3954.9,3954.3,0.33]
[1758854005620,0.45488,3954.7,3954.0,0.58545]
[1758854006012,0.45488,3954.7,3954.1,0.33]
[1758854006328,0.3464,3954.8,3954.1,0.33]
[1758854006514,0.8013,3954.5,3954.1,0.33]
[1758854007019,0.3464,3954.2,3954.1,0.33]
[1758854007208,0.45487,3954.8,3953.6,0.33]
[1758854007414,0.86701894,3954.7,3953.6,0.33]
[1758854007616,0.3464,3954.4,3953.6,0.33]
[1758854007913,0.45496,3954.0,3953.5,0.1305]
[1758854008118,0.80136,3954.0,3953.5,0.1305]
[1758854008323,0.80136,3954.0,3953.6,0.33]
[1758854008531,0.45492,3954.3,3953.7,0.45499]
[1758854008717,0.3464,3954.2,3953.9,0.33]
[1758854008918,0.3464,3954.2,3954.0,0.33]
[1758854009118,0.45497,3953.9,3953.6,0.33]
[1758854009319,0.3464,3954.0,3953.5,0.1305]
[1758854009525,0.3464,3954.5,3953.8,0.33]
[1758854009823,0.3464,3953.9,3953.4,0.592]
[1758854010115,0.3464,3954.4,3953.9,0.45496]
[1758854010316,0.3464,3954.4,3954.1,0.3336]
[1758854010719,0.45492,3954.4,3954.1,0.3336]
[1758854011321,0.79266,3954.9,3954.4,0.3336]
[1758854011521,0.1354,3955.5,3954.0,0.1365]
[1758854011522,0.52170893,3954.8,3954.1,0.3336]
[1758854011721,0.45478,3955.5,3955.0,0.1365]
[1758854012020,0.85948107,3955.4,3955.1,0.3336]
[1758854012220,0.52168107,3955.3,3955.1,0.3336]
[1758854012420,0.45476,3955.7,3955.1,0.3336]
[1758854012421,0.52168107,3955.2,3955.1,0.3336]
[1758854012724,0.52168107,3955.4,3955.0,0.1365]
[1758854013021,0.262,3956.1,3955.0,0.1365]
[1758854013022,0.52177244,3955.3,3955.0,0.1365]
[1758854013224,0.5219766,3955.2,3955.0,0.59133]
[1758854013418,0.79258,3955.5,3955.1,0.3336]
[1758854013621,0.52197802,3955.4,3955.0,0.59133]
[1758854013825,0.52197802,3955.3,3955.1,0.3336]
[1758854014026,0.52197802,3955.2,3955.1,0.3336]
[1758854014230,0.97677802,3955.4,3955.1,0.3336]
[1758854014435,0.52197802,3955.3,3955.0,0.59133]
[1758854014727,0.52197802,3955.2,3955.1,0.3336]
[1758854015123,0.52197802,3955.4,3955.1,0.45482]
[1758854015329,0.52197802,3955.3,3955.1,0.45482]
[1758854015520,0.52197802,3955.2,3955.1,0.45482]
[1758854015721,1.31459802,3955.2,3955.1,0.3336]
[1758854016028,1.31459802,3955.2,3954.7,0.3336]
[1758854016223,0.52197802,3955.1,3954.7,0.3336]
[1758854016425,0.3378,3955.0,3954.5,0.1365]
[1758854016621,0.3378,3955.0,3954.9,0.3336]
[1758854016820,0.86019782,3955.0,3954.9,0.3336]
[1758854018229,1.29539782,3955.0,3954.9,0.3336]
[1758854018526,1.29539782,3955.0,3954.9,0.5431]
[1758854019726,0.95759782,3955.0,3954.9,0.7656]
[1758854020128,0.4352,3955.0,3954.9,0.7656]
[1758854020328,0.2256,3955.0,3954.9,0.7656]
[1758854020530,1.29540492,3955.0,3954.9,0.7656]
[1758854021527,0.74800492,3955.0,3954.9,0.7656]
[1758854022230,1.29540492,3955.0,3954.9,0.7656]
[1758854023123,1.29540492,3955.0,3953.5,0.1305]
[1758854023124,0.4352,3954.5,3953.5,0.1305]
[1758854023431,0.773,3954.2,3954.1,1.48254]
[1758854023618,0.2256,3954.4,3954.3,0.45492]
[1758854023820,0.2256,3954.4,3954.3,0.88692]
[1758854024230,0.2256,3954.4,3954.3,1.22052]
[1758854025027,0.2256,3954.6,3954.5,0.4549]
[1758854025230,0.74795447,3954.6,3954.5,0.8869]
[1758854025531,1.29535447,3954.6,3953.6,40.8]
[1758854025729,2.06425965,3955.7,3954.4,0.45491]
[1758854025730,0.52235447,3954.5,3954.4,0.45491]
[1758854025924,0.04401612,3955.8,3954.3,5.26654302]
[1758854025925,0.773,3955.4,3955.3,0.7656]
[1758854026124,1.29538935,3955.4,3955.3,0.7656]
[1758854026327,0.74798935,3955.4,3955.3,0.7656]
[1758854026530,0.52238935,3955.4,3955.3,0.7656]
[1758854029330,0.52238935,3955.4,3955.0,0.1365]
[1758854029331,0.95758935,3955.4,3955.0,0.1365]
[1758854029535,0.52238935,3955.3,3954.9,1.14884]
[1758854029834,0.773,3955.3,3955.2,0.5431]
[1758854030026,1.29605065,3955.3,3955.2,0.5431]
[1758854031331,0.95825065,3955.3,3955.2,0.7656]
[1758854031522,0.95825065,3955.3,3955.2,1.22042]
[1758854031523,0.52305065,3955.3,3955.2,1.22042]
[1758854032033,0.52305065,3955.3,3955.2,0.7656]
[1758854032234,0.74865065,3955.3,3955.2,0.7656]
[1758854032433,0.95825065,3955.3,3955.2,0.7656]
[1758854032634,1.29605065,3955.3,3955.2,0.7656]
[1758854032836,1.29605065,3955.3,3955.2,0.5431]
[1758854033327,0.95825065,3955.3,3955.2,0.7656]
[1758854033630,1.29605065,3955.3,3955.2,0.7656]
[1758854033835,1.29605065,3955.3,3955.2,0.5431]
[1758854034937,0.773,3954.9,3954.7,0.45486]
[1758854035235,0.2256,3954.9,3954.8,0.7656]
[1758854035434,0.773,3955.3,3955.2,0.5431]
[1758854035636,1.29711979,3955.3,3955.2,0.5431]
[1758854038126,1.29711979,3955.3,3955.0,0.45483]
[1758854038327,0.773,3955.1,3955.0,0.99793]
[1758854038541,1.29711979,3955.1,3955.0,0.99793]
[1758854039040,1.29711979,3955.1,3955.0,1.22043]
[1758854039237,0.74971979,3955.1,3955.0,1.35693]
[1758854039536,0.52411979,3955.1,3955.0,1.35693]
[1758854039735,0.1273,3956.0,3955.3,0.8868]
[1758854039736,0.52464835,3955.4,3955.3,0.8868]
[1758854039938,0.52464835,3955.4,3955.3,1.2204]
[1758854040841,0.96284835,3955.4,3955.3,1.2204]
[1758854041034,1.27944835,3955.4,3955.3,1.2204]
[1758854041242,0.96284835,3955.4,3955.3,1.2204]
[1758854042444,0.96284835,3955.4,3955.3,0.7656]
[1758854042637,0.3166,3955.3,3955.1,0.3213]
[1758854042838,0.1273,3955.5,3954.6,1.20148]
[1758854042839,0.7473,3954.7,3954.6,1.20148]
[1758854043039,0.95534835,3954.7,3954.6,1.20148]
[1758854043541,0.52464835,3954.7,3954.6,1.20148]
[1758854043730,0.52464835,3954.7,3954.5,0.1365]
[1758854043731,1.20211,3955.3,3955.2,0.5305]
[1758854044042,1.72732361,3955.3,3955.2,0.5305]
[1758854044536,1.72732361,3955.3,3955.2,0.2092]
[1758854044739,0.7881,3955.0,3954.9,0.5723]
[1758854044939,1.31331361,3955.0,3954.9,0.7884]
[1758854045335,1.11451361,3955.0,3954.5,0.3458]
[1758854045541,0.7881,3954.2,3954.1,0.5723]
[1758854045844,0.4537,3953.9,3953.8,0.3458]
[1758854046039,1.31331361,3953.9,3953.8,0.5723]
[1758854046339,0.97891361,3953.9,3953.8,0.7884]
[1758854046540,0.97891361,3953.9,3953.8,5.7884]
[1758854046541,0.52521361,3953.9,3953.8,5.7884]
[1758854046738,0.7881,3954.4,3954.3,0.5723]
[1758854046934,1.31318948,3954.4,3954.3,0.5723]
[1758854047438,0.97878948,3954.4,3954.1,0.3458]
[1758854047645,0.4537,3954.2,3954.1,0.7884]
[1758854047845,0.233,3954.5,3954.4,0.7884]
[1758854048236,0.53496575,3954.5,3954.4,0.7884]
[1758854048545,0.0098,3954.5,3954.4,5.7884]
[1758854048944,0.0098,3954.5,3954.4,46.5884]
[1758854049155,0.0098,3954.5,3954.4,41.8494]
[1758854049650,0.0098,3954.5,3954.4,41.5884]
[1758854050541,0.0098,3954.5,3954.4,0.7884]
[1758854050740,0.233,3954.5,3954.4,0.7884]
[1758854051439,0.0098,3954.5,3954.4,0.7884]
[1758854051640,0.233,3954.5,3954.4,0.7884]
[1758854052546,0.7979,3954.5,3954.4,0.8333]
[1758854052748,1.32287474,3954.5,3954.4,0.8333]
[1758854053847,1.32287474,3954.5,3954.4,0.4875]
[1758854054353,0.4537,3954.3,3954.2,0.8333]
[1758854054647,0.7881,3954.3,3954.2,0.8333]
[1758854055352,1.31307528,3954.3,3954.2,0.8333]
[1758854055538,0.45493,3954.2,3953.8,0.80077]
[1758854055739,0.7881,3953.9,3953.8,0.5723]
[1758854055947,0.5649,3953.8,3953.7,0.8333]
[1758854056144,0.7881,3953.8,3953.7,0.8333]
[1758854056344,0.2232,3953.8,3953.7,1.50439]
[1758854057352,0.1422,3954.5,3953.3,1.24343]
[1758854057353,0.2232,3953.4,3953.3,1.24343]
[1758854057553,0.4537,3953.4,3953.3,1.0494]
[1758854057959,0.4537,3954.0,3953.9,0.5723]
[1758854058156,1.3129657,3954.0,3953.9,0.5723]
[1758854058344,0.5248657,3954.0,3953.9,0.7884]
[1758854058545,0.233,3954.5,3954.4,0.4426]
[1758854058751,0.233,3954.5,3954.4,0.7884]
[1758854058752,0.53446496,3954.5,3954.4,0.7884]
[1758854058947,0.53446496,3954.5,3953.0,1.50114995]
[1758854058948,0.45502,3953.4,3953.0,1.50114995]
[1758854059249,0.7881,3953.1,3953.0,0.4426]
[1758854059454,0.3344,3953.4,3953.1,0.45506]
[1758854059651,0.2232,3953.4,3953.3,0.89763]
[1758854059844,0.7881,3953.8,3953.7,0.4426]
[1758854060052,1.31134191,3953.8,3953.7,0.4426]
[1758854060448,0.7881,3954.2,3954.1,0.2265]
[1758854060756,1.3176196,3954.2,3954.1,0.2265]
[1758854061156,0.7881,3954.1,3954.0,0.2265]
[1758854061355,1.3176196,3954.1,3954.0,0.5723]
[1758854061751,1.3176196,3954.1,3954.0,0.2265]
[1758854061950,0.9832196,3954.1,3953.6,0.716]
[1758854062147,0.7881,3953.8,3953.7,0.7884]
[1758854062559,0.7881,3953.8,3953.7,1.0494]
[1758854062856,0.45501,3953.6,3953.1,0.45505]
[1758854063064,0.4537,3953.2,3953.1,1.24345]
[1758854063959,0.7881,3953.2,3953.1,1.24345]
[1758854064353,0.7881,3953.2,3953.1,0.7884]
[1758854064658,0.65962943,3953.2,3953.1,1.0494]
[1758854064860,0.09472943,3953.2,3953.1,1.0494]
[1758854065061,0.2232,3953.5,3953.4,0.89762]
[1758854065254,0.2232,3953.5,3953.4,0.7884]
[1758854065255,0.7526073,3953.5,3953.4,0.7884]
[1758854065455,0.7526073,3953.5,3953.2,0.45504]
[1758854065456,0.3344,3953.4,3953.2,0.45504]
[1758854065759,0.2232,3953.4,3953.3,0.7884]
[1758854068169,0.4537,3953.4,3953.3,0.7884]
[1758854068371,0.7881,3953.4,3953.3,0.7884]
[1758854068965,0.7881,3952.9,3952.8,1.28838]
[1758854069263,0.2232,3953.5,3953.4,0.45502]
[1758854069468,0.52934192,3953.6,3953.4,0.89762]
[1758854069669,0.78935,3954.1,3953.5,0.5933]
[1758854069965,0.2232,3953.9,3953.8,0.7884]
[1758854070157,0.2232,3953.9,3953.5,0.1383]
[1758854070158,0.2121,3953.6,3953.5,0.1383]
[1758854070362,0.7725,3953.6,3953.5,0.6254]
[1758854070566,0.7725,3953.6,3953.5,0.9396]
[1758854070773,0.442,3953.6,3953.5,1.1656]
[1758854071268,0.442,3953.6,3953.5,0.9046]
[1758854071468,0.7725,3953.6,3953.5,0.5403]
[1758854071972,0.7725,3953.6,3953.5,0.7663]
[1758854072271,0.442,3953.6,3953.5,0.8945]
[1758854073269,0.52970038,3953.6,3953.5,0.5803]
[1758854073568,0.0252,3953.8,3953.7,0.7663]
[1758854073967,0.55483968,3953.8,3953.7,0.7663]
[1758854075267,0.2121,3953.4,3953.3,0.3142]
[1758854075466,0.2121,3953.4,3953.3,1.0273]
[1758854075763,0.3305,3953.7,3953.3,1.48232]
[1758854075970,0.2121,3953.5,3953.4,0.7663]
[1758854076366,0.442,3953.5,3953.4,0.7663]
[1758854076672,0.7725,3953.5,3953.4,0.5403]
[1758854076867,1.30239207,3953.5,3953.4,0.5403]
[1758854077672,0.7725,3953.4,3953.3,0.5403]
[1758854077873,1.30239207,3953.4,3953.3,0.5403]
[1758854080070,1.30239207,3953.4,3953.0,0.3993]
[1758854080071,1.22756,3953.1,3953.0,0.5403]
[1758854080276,0.97189207,3953.1,3953.0,0.8945]
[1758854080470,0.52989207,3953.1,3953.0,0.8945]
[1758854080971,0.78552,3953.5,3953.1,0.7663]
[1758854080972,0.2121,3953.2,3953.1,0.7663]
[1758854081374,0.53020789,3953.2,3953.1,0.7663]
[1758854081563,0.442,3953.9,3953.8,0.7663]
[1758854081762,0.53023181,3953.9,3953.6,0.3142]
[1758854081966,0.897,3953.7,3953.3,0.76923]
[1758854082166,1.30273181,3953.6,3953.5,0.5403]
[1758854082568,1.30273181,3953.6,3953.5,0.7663]
[1758854082775,0.442,3953.3,3953.2,1.0273]
[1758854083081,0.97223181,3953.3,3953.2,1.0273]
[1758854084184,0.53023181,3953.3,3953.2,1.0273]
[1758854085173,0.53023181,3953.3,3953.2,0.7663]
[1758854085381,1.30273181,3953.3,3953.2,1.0273]
[1758854085973,0.53023181,3953.3,3953.2,1.0273]
[1758854087163,0.74233181,3953.3,3953.2,1.0273]
[1758854088276,1.30273181,3953.3,3953.2,0.7663]
[1758854088573,1.30273181,3953.3,3953.2,0.5403]
[1758854088873,0.97223181,3953.3,3953.2,0.7663]
[1758854089070,0.97223181,3953.3,3952.2,1.13789]
[1758854089071,0.442,3952.8,3952.7,0.5403]
[1758854089278,0.442,3952.8,3952.7,0.7663]
[1758854089279,0.97223181,3952.8,3952.7,0.7663]
[1758854089471,0.53023181,3952.8,3952.7,0.7663]
[1758854089674,1.3056356,3953.2,3953.1,0.4521]
[1758854089870,1.30563555,3953.2,3953.1,0.7663]
[1758854090578,0.97513555,3953.2,3953.1,0.7663]
[1758854090973,0.53313555,3953.2,3953.1,0.7663]
[1758854091476,0.45172516,3953.2,3953.1,5.7663]
[1758854091669,0.0252,3953.4,3953.3,0.4521]
[1758854091869,0.0252,3953.4,3953.3,1.0283]
[1758854092181,0.0252,3953.4,3953.3,41.8283]
[1758854092371,0.2121,3953.9,3953.8,0.45497]
[1758854092574,0.2121,3953.9,3953.8,1.16907]
[1758854093074,0.2121,3953.9,3953.8,1.48327]
[1758854093577,0.442,3953.9,3953.8,1.48327]
[1758854094282,0.2121,3953.9,3953.8,1.48327]
[1758854095180,0.2121,3954.1,3954.0,0.45494]
[1758854095479,0.2121,3954.1,3954.0,1.34944]
[1758854096079,0.2121,3954.1,3954.0,0.8945]
[1758854096280,0.442,3954.1,3954.0,0.8945]
[1758854096479,0.7725,3954.1,3954.0,0.8945]
[1758854097880,0.7725,3954.1,3954.0,0.5403]
[1758854098076,0.442,3953.9,3953.8,0.4881]
[1758854098375,0.7725,3953.9,3953.8,0.8023]
[1758854098577,6.06560244,3954.8,3953.8,0.8023]
[1758854098578,0.5426,3954.8,3954.7,0.2261]
[1758854098775,0.45485,3955.0,3954.7,0.4521]
[1758854098970,0.3305,3954.9,3954.8,0.3142]
[1758854099170,0.7725,3954.9,3954.8,0.2261]
[1758854099478,0.7725,3954.9,3953.3,83.19683326]
[1758854099479,0.1312,3953.5,3952.4,3.16092572]
[1758854099774,4.72489006,3953.1,3953.0,0.3543]
[1758854099975,0.71903,3953.4,3953.2,0.535]
[1758854099976,0.45503,3953.4,3953.2,0.535]
[1758854100179,0.45503,3953.4,3953.3,0.7724]
[1758854100477,1.80225965,3954.0,3953.5,0.128]
[1758854100478,0.455,3953.7,3953.5,0.128]
[1758854100681,0.45497,3953.9,3953.8,0.2208]
[1758854101173,0.45497,3953.9,3953.8,0.5451]
[1758854101682,4.72489006,3954.0,3953.5,0.128]
[1758854101683,4.72489006,3954.0,3953.9,0.7724]
[1758854101882,4.75009006,3954.0,3953.9,0.7724]
[1758854102283,0.0252,3954.0,3953.9,0.7724]
[1758854103079,4.75009006,3954.0,3953.9,0.7724]
[1758854103677,5.33009663,3954.0,3953.9,0.7724]
[1758854104574,0.60520657,3954.0,3953.9,0.7724]
[1758854104773,0.93434,3955.1,3955.0,0.3508]
[1758854105078,0.93434,3955.1,3954.5,0.1271]
[1758854105079,0.45505,3953.2,3951.9,3.16092572]
[1758854105390,11.37258,3954.5,3952.5,0.2237]
[1758854105391,0.7751,3952.6,3952.5,0.2237]
[1758854105682,0.7751,3952.6,3951.6,0.45522]
[1758854105884,4.72489006,3952.7,3952.0,0.2237]
[1758854105885,0.7751,3952.1,3952.0,0.2237]
[1758854106074,0.7751,3952.1,3952.0,0.4329]
[1758854106390,0.3323,3952.1,3952.0,0.4329]
[1758854106683,0.7751,3952.1,3952.0,0.2237]
[1758854106985,0.2155,3951.7,3951.6,0.88813]
[1758854107183,0.5478,3951.7,3951.6,0.88813]
[1758854107382,0.7751,3951.7,3951.6,0.4329]
[1758854107582,0.7751,3951.7,3951.6,0.2237]
[1758854108279,0.7751,3951.7,3951.6,0.4329]
[1758854108486,0.1288,3952.5,3952.2,0.4329]
[1758854108678,0.3323,3952.3,3952.2,0.4329]
[1758854108882,0.5478,3952.3,3952.2,0.4329]
[1758854109585,0.2155,3951.6,3951.5,0.2237]
[1758854109886,0.3323,3951.9,3951.8,0.7467]
[1758854110281,0.0253,3952.4,3951.8,0.8881]
[1758854110481,0.3323,3952.3,3951.8,0.8881]
[1758854110691,0.4428,3951.9,3951.8,0.4329]
[1758854110878,0.5478,3951.9,3951.8,0.7467]
[1758854111080,0.3323,3951.9,3951.8,0.7467]
[1758854112085,0.5478,3951.9,3951.8,0.4329]
[1758854112588,0.5478,3951.9,3951.8,0.7467]
[1758854113885,0.7751,3951.9,3951.8,0.4329]
[1758854114086,0.7751,3951.9,3951.4,0.5798]
[1758854114087,0.9039,3951.5,3951.4,0.4897]
[1758854114793,0.9039,3951.5,3951.4,0.266]
[1758854115085,0.3323,3952.3,3952.0,0.45518]
[1758854115285,0.3323,3952.3,3952.2,0.7467]
[1758854115286,0.5478,3952.3,3952.2,0.7467]
[1758854115681,0.3323,3952.3,3952.2,0.7467]
[1758854116283,0.5478,3952.9,3952.8,0.2237]
[1758854116689,0.7751,3952.9,3952.8,0.2237]
[1758854116993,1.35764502,3952.9,3952.8,0.2237]
[1758854117985,1.35764502,3952.9,3952.6,0.45511]
[1758854118193,0.7751,3952.7,3952.6,0.88801]
[1758854118490,0.91484502,3952.7,3952.6,1.20181]
[1758854118696,0.1288,3953.5,3952.8,0.45509]
[1758854118888,0.2155,3953.0,3952.9,0.4329]
[1758854119196,0.5478,3953.0,3952.9,0.7467]
[1758854119390,1.50080879,3953.0,3952.9,0.4329]
[1758854120290,1.50080879,3953.0,3952.9,0.2237]
[1758854120488,1.14470879,3953.0,3952.9,0.7467]
[1758854120887,1.14467903,3953.0,3952.9,0.7467]
[1758854121092,1.50077643,3953.0,3952.9,0.2237]
[1758854122590,0.5478,3952.9,3952.8,0.45508]
[1758854122791,0.7751,3952.9,3952.8,0.45508]